Cogmind - Beta 17 @@@ ROGUE MODE // 2026.07.17 @ 16:21:37 Player: 3.14 Result: Destroyed by S-27 Virus with Autogun Performance ------------- Evolutions (4) 2000 Regions Visited (8) 1600 Robots Destroyed (70) 350 Value Destroyed (2493) 2493 Prototype IDs (26) 520 Alien Tech Used (0) 0 Bonus (9581) 9581 TOTAL SCORE: 16544 Bonus ------- Follower Combat Kills 105 Prayed to X0-1V1 5000 Major X0-1V1 Interference 3400 Registered with UFD 300 Met Optimus in HQ 500 Met Data Miner 300 Friendly Fire -24 Cogmind --------- Core Integrity 0/650 Matter 280/300 Energy 1325/1325 System Corruption 0% Temperature Cool (0) Movement Rolling (115) Ox1 Location -5/Proximity Caves Parts ------- > --- POWER (1) -------- Antimatter Reactor > --- PROPULSION (4) --- Enhanced Flexi-carbon Leg Enhanced Flexi-carbon Leg Armored Huge Wheel > --- UTILITY (9) ------ Large Storage Unit Advanced Signal Interpreter IFF Parser Improved Melee Analysis Suite Improved Melee Analysis Suite Armor Integrity Analyzer Focal Shield Experimental Thermal Shield X0-1V1's Piety Tracker > --- WEAPON (2) ------- Companion Sword (fused) > --- INVENTORY (15) --- Enhanced Flexi-carbon Leg Enhanced Flexi-carbon Leg Advanced Heat Sink Advanced Heat Sink Advanced Energy Well (500) Advanced Energy Well (500) Advanced Energy Well (500) Ghost Barrier Neutron Cannon Mini Grenade Launcher Peak State ------------ > --- POWER ------------ Antimatter Reactor > --- PROPULSION ------- Enhanced Flexi-carbon Leg Enhanced Flexi-carbon Leg Armored Huge Wheel > --- UTILITY ---------- Large Storage Unit Advanced Signal Interpreter IFF Parser Improved Melee Analysis Suite Improved Melee Analysis Suite Armor Integrity Analyzer Focal Shield Experimental Thermal Shield X0-1V1's Piety Tracker > --- WEAPON ----------- Companion Sword > --- INVENTORY -------- Enhanced Flexi-carbon Leg Enhanced Flexi-carbon Leg Advanced Heat Sink Advanced Heat Sink Advanced Energy Well Advanced Energy Well Advanced Energy Well Ghost Barrier Neutron Cannon Mini Grenade Launcher [Rating: 91] Favorites ----------- Power Ion Engine Engine Ion Engine Reactor Cold Fusion Reactor Propulsion Light Treads Treads Light Treads Leg Enhanced Flexi-carbon Leg Wheel Armored Huge Wheel Utility X0-1V1's Piety Tracker Device X0-1V1's Piety Tracker Storage Huge Storage Unit Processor Improved Melee Analysis Suite Protection Hardened Light Armor Plating Weapon Companion Sword Energy Gun Medium Laser Energy Cannon Subdweller Beam Cannon Ballistic Gun Shotgun Launcher Mini Grenade Launcher Special Weapon CPS Tube Slashing Weapon Companion Sword Build | -11 -10 -10 -9 -6 -6 -6 -6 -5 ------- Run | Yrd Mat Sub Scr Fac Low Low Dat Pro Slots Evolved 8 | . . . . 8 . . . . Power . | . . . . . . . . . Propulsion 2 | . . . . 2 . . . . Utility 6 | . . . . 6 . . . . Weapon . | . . . . . . . . . Parts Attached 85 | 7 9 7 10 26 3 6 11 6 Power 9 | 1 1 1 1 2 . 1 2 . Engine 7 | 1 1 1 1 1 . 1 1 . Core . | . . . . . . . . . Reactor 2 | . . . . 1 . . 1 . Propulsion 21 | 2 . 2 1 8 . 2 4 2 Treads 10 | 2 . 2 1 5 . . . . Leg 6 | . . . . 1 . 1 3 1 Wheel 5 | . . . . 2 . 1 1 1 Hover . | . . . . . . . . . Flight . | . . . . . . . . . Utility 38 | 2 3 2 4 13 2 3 5 4 Device 18 | 1 1 . 2 4 1 2 4 3 Storage 4 | 1 1 . 1 . . . 1 . Processor 6 | . . . . 4 . 1 . 1 Hackware . | . . . . . . . . . Protection 10 | . 1 2 1 5 1 . . . Artifact . | . . . . . . . . . Weapon 17 | 2 5 2 4 3 1 . . . Energy Gun 1 | 1 . . . . . . . . Energy Cannon 1 | . . 1 . . . . . . Ballistic Gun 8 | 1 4 1 2 . . . . . Ballistic Cannon . | . . . . . . . . . Launcher 2 | . . . . 2 . . . . Special Weapon 2 | . 1 . 1 . . . . . Impact Weapon . | . . . . . . . . . Slashing Weapon 3 | . . . 1 1 1 . . . Piercing Weapon . | . . . . . . . . . Special Melee Weapon . | . . . . . . . . . Unidentified Prototypes 6 | . 1 . 1 1 . . 3 . Parts Lost 37 | . . 5 . 13 . 7 8 4 Power 5 | . . 1 . 1 . 1 2 . Propulsion 15 | . . 2 . 5 . 3 3 2 Utility 15 | . . 2 . 5 . 3 3 2 Weapon 2 | . . . . 2 . . . . Highest Loss Streak 7 | . . 3 . 5 . 7 4 3 To Critical Strikes 2 | . . . . . . 1 . 1 Average Backups 16 | 3 14 24 21 9 10 8 9 12 Power . | . 1 . . . 1 . . . Propulsion 3 | 1 1 3 3 5 5 3 2 3 Utility 5 | . 4 7 7 1 3 3 5 6 Weapon 6 | 1 6 13 10 1 1 . 1 2 Tool/Special . | . . . . . . . . . Unused Backups 39 | 1 5 2 18 2 2 1 1 7 Power 3 | . 2 . 1 . . . . . Propulsion 9 | . 1 . 2 2 1 1 . 2 Utility 10 | . 1 . 4 . . . 1 4 Weapon 17 | 1 1 2 11 . 1 . . 1 Tool/Special . | . . . . . . . . . Average Slot Usage (%) 92 | . 100 99 95 80 91 78 74 78 Engine 10 | . 14 14 14 3 . 3 4 . Reactor 1 | . . . . 2 6 2 1 6 Treads 22 | . 28 28 28 13 12 5 . . Wheel 1 | . . . . 5 6 6 6 6 Device 10 | . 1 . 13 15 17 17 14 19 Storage 11 | . 14 14 14 6 6 6 6 6 Processor 5 | . . . . 12 18 18 25 25 Protection 6 | . 12 13 . 10 9 5 . . Energy Cannon 1 | . . 9 1 . . . . . Ballistic Gun 13 | . 27 18 15 . . . . . Slashing Weapon 4 | . . . 5 6 12 8 6 6 Peak Build Rating 91 | 7 24 24 31 77 84 84 85 91 Average Rating 34 | 5 11 13 25 56 80 70 74 84 On Entrance 43 | . 7 24 14 31 77 83 67 85 Avg Prop Armor Cover (%) 13 | . . . . 15 12 10 12 7 Naked Turns . | . . . . . . . . . Heaviest Build 102 | 13 96 102 102 50 57 61 43 45 Greatest Support 86 | 40 40 40 43 86 28 28 28 28 Greatest Overweight (x) 2 | . 2 2 2 1 2 2 1 1 Average Overweight (x) 1 | . 1 2 1 . 1 1 . 1 Largest Inventory Capacity 25 | 8 25 25 25 15 15 15 15 15 Average Capacity 19 | 7 20 25 23 15 15 15 15 15 Most Carried 25 | 6 25 25 25 15 15 15 15 15 Average Carried 17 | 3 14 24 21 13 14 11 11 13 Final Capacity 25 | 8 25 25 15 15 15 15 15 15 Final Carried 24 | 6 24 23 15 15 15 8 15 10 Class Distribution -------------------- 83% | Mutant 9% | Gladiator 3% | Derelict-Mutant 3% | Scavenger-Mutant Dominant Class ---------------- Mutant | -10/Materials Mutant | -10/Subcaves Mutant | -9/Scraptown Mutant | -6/Factory Gladiator | -6/Lower Caves Mutant | -6/Lower Caves Scavenger-Mutant | -6/Data Miner Mutant | -5/Proximity Caves Resources | -11 -10 -10 -9 -6 -6 -6 -6 -5 ----------- Run | Yrd Mat Sub Scr Fac Low Low Dat Pro Matter Collected 2636 | 341 368 296 162 354 523 442 105 45 Remotely . | . . . . . . . . . Salvage Created 3352 | 140 547 248 . 1015 531 208 406 257 Parts 156 | 19 30 15 . 41 7 19 22 3 Haulers Intercepted 5 | . 2 . . 3 . . . . Recyclers Shooed 4 | 3 1 . . . . . . . Parts Field Recycled . | . . . . . . . . . Retrieved Matter . | . . . . . . . . . Parts Self-Destructed 38 | . . 5 . . 8 24 . 1 Prevented . | . . . . . . . . . Parts Restored . | . . . . . . . . . Kills | -11 -10 -10 -9 -6 -6 -6 -6 -5 ------- Run | Yrd Mat Sub Scr Fac Low Low Dat Pro Combat Hostiles Destroyed 57 | . 14 6 . 19 3 9 4 2 Melee 24 | . . . . 12 3 3 4 2 Guns 16 | . 14 2 . . . . . . Cannons 5 | . . 4 . 1 . . . . AOE 12 | . . . . 6 . 6 . . Classes Destroyed 13 | 1 3 1 . 4 2 1 . 1 Tunneler 7 | 7 . . . . . . . . Hauler 5 | . 2 . . 3 . . . . Mechanic 1 | . . . . 1 . . . . Drone 2 | . . . . . 2 . . . Watcher 1 | . . . . 1 . . . . Swarmer 15 | . 3 . . 6 . 5 . 1 Grunt 26 | . 11 . . 11 1 3 . . Brawler 1 | . . . . 1 . . . . Sentry 1 | . . . . . . . . 1 Heavy 1 | . . . . 1 . . . . Enhanced Grunt 4 | . . . . . . . 4 . Subdweller 6 | . . 6 . . . . . . Packrat 3 | . . . . . 3 . . . Thief 1 | . . . . . . 1 . . Best Kill Streak 5 | 2 4 2 . 5 1 5 1 1 Combat Bots Only 5 | . 3 2 . 5 1 5 1 1 Max Kills in Single Turn 2 | 1 1 1 . 2 1 2 1 1 Gunslinging . | . . . . . . . . . Exploded 2 | . . . . 2 . 2 . . Melee 1 | . . . . 1 1 1 1 1 Uniques/NPCs Destroyed 1 | . . . . . . . 1 . Data Miner (-6/Data Miner) Combat | -11 -10 -10 -9 -6 -6 -6 -6 -5 -------- Run | Yrd Mat Sub Scr Fac Low Low Dat Pro Hostile Shots Fired 436 | . 45 36 . 148 2 108 46 51 Missed 109 | . 11 5 . 38 . 32 7 16 Hits 327 | . 34 31 . 110 2 76 39 35 Melee 6 | . . . . 5 . 1 . . Projectile 321 | . 34 31 . 105 2 75 39 35 AOE 2 | . . 2 . . . . . . Critical Strikes 9 | . . . . 5 . 2 . 2 Damage Taken 6776 | . 397 850 . 2484 28 1244 1249 524 Core 960 | . 10 114 . 265 . 168 239 164 Absorbed by Shields 290 | . . . . . . 200 90 . Redirected to Shielding 52 | . . . . 52 . . . . Ignored by Resistances 622 | . . . . . . 45 429 148 Core Remaining (%) 81 | 100 . . 63 . . . . . Volleys Fired 109 | 26 39 27 . 5 . 12 . . Largest 2 | 2 2 2 . 1 . 1 . . Hottest 110 | 70 100 110 . 40 . 30 . . Shots Fired 196 | 52 75 52 . 5 . 12 . . Gun 157 | 52 73 32 . . . . . . Cannon 18 | . . 18 . . . . . . Launcher 17 | . . . . 5 . 12 . . Special 4 | . 2 2 . . . . . . Kinetic 135 | 26 73 32 . 4 . . . . Thermal 48 | 26 2 20 . . . . . . Explosive 13 | . . . . 1 . 12 . . Electromagnetic . | . . . . . . . . . Robot Hit Streak 25 | 12 8 19 . 24 . 25 . . Robot Miss Streak 4 | 3 4 2 . . . 1 . . Penetration Max . | . . . . . . . . . Secondary Targets 3 | . 2 1 . . . . . . Max Gunslinging Chain 1 | . 1 1 . . . . . . Shots Hit Robots 281 | 35 58 43 . 72 9 10 37 17 Core Hits 136 | 8 32 11 . 36 5 28 13 3 Critical Kills . | . . . . . . . . . Critical Parts Destroyed . | . . . . . . . . . Critical Strikes 13 | 2 . . . 6 . 1 2 2 Burn 2 | 2 . . . . . . . . Sever 1 | . . . . . . 1 . . Melee Attacks 188 | . . . . 84 11 14 59 20 Impact . | . . . . . . . . . Slashing 188 | . . . . 84 11 14 59 20 Piercing . | . . . . . . . . . Sneak Attacks 15 | . . . . 9 5 . 1 . Combat Hostiles 3 | . . . . 1 2 . . . Follow-up Attacks 3 | . . . . . . 2 . 1 Damage Inflicted 11122 | 419 888 949 . 4027 662 1787 1543 847 Guns 1796 | 418 873 505 . . . . . . Cannons 644 | . . 444 . 200 . . . . Explosions 2325 | . . . . 845 . 1480 . . Melee 6341 | . . . . 2982 662 307 1543 847 Ramming 16 | 1 15 . . . . . . . Kinetic 2050 | 164 873 505 . 508 . . . . Thermal 1089 | 254 . 444 . 391 . . . . Explosive 1626 | . . . . 146 . 1480 . . Electromagnetic . | . . . . . . . . . Impact . | . . . . . . . . . Slashing 6341 | . . . . 2982 662 307 1543 847 Piercing . | . . . . . . . . . Highest Corruption 4 | . . 2 . 4 . . . . Average Corruption 2 | . . 2 . 3 . . . . Corruption Purged 4 | . . . . 4 . . . . Corruption Blocked . | . . . . . . . . . Effects 21 | . . 8 . 13 . . . . Message Errors 5 | . . 3 . 2 . . . . Matter Fused 4 | . . 1 . 3 . . . . Heat Flow Errors 1 | . . . . 1 . . . . Energy Discharges 3 | . . 1 . 2 . . . . Data Loss (minor) 7 | . . 3 . 4 . . . . Data Loss (major) 1 | . . . . 1 . . . . Overload Shots . | . . . . . . . . . Overflow Damage 898 | . . . . 374 255 36 2 231 Projectiles 140 | . . . . 140 . . . . Explosions 59 | . . . . 23 . 36 . . Melee 699 | . . . . 211 255 . 2 231 Knockbacks . | . . . . . . . . . Impact . | . . . . . . . . . Kinetic . | . . . . . . . . . Secondary . | . . . . . . . . . Self-Inflicted Damage 204 | . . . . 69 . 135 . . Shots 6 | . . . . 1 . 5 . . Rammed 7 | 2 5 . . . . . . . Targets Rammed 7 | 2 5 . . . . . . . Kicked . | . . . . . . . . . Crushed . | . . . . . . . . . Highest Temperature 115 | 81 80 58 . 115 . 35 . . Average Temperature 21 | 23 19 17 . 29 . 13 . . Received Heat Transfer 1639 | . 195 192 . 747 18 388 . 99 Siege Activations . | . . . . . . . . . Martial Activations . | . . . . . . . . . Shielding Activations . | . . . . . . . . . Robots Disrupted 1 | . . . . 1 . . . . Combat Hostiles 1 | . . . . 1 . . . . Robots Corrupted . | . . . . . . . . . Combat Hostiles . | . . . . . . . . . Parts Fried . | . . . . . . . . . Impact Corruptions . | . . . . . . . . . Robots Melted . | . . . . . . . . . Combat Hostiles . | . . . . . . . . . Parts Melted . | . . . . . . . . . Heat Transferred 1770 | 888 . 592 . 290 . . . . Parts Sabotaged . | . . . . . . . . . Parts Stolen . | . . . . . . . . . Parts Stripped . | . . . . . . . . . Power Chain Reactions . | . . . . . . . . . Alert | -11 -10 -10 -9 -6 -6 -6 -6 -5 ------- Run | Yrd Mat Sub Scr Fac Low Low Dat Pro Maximum Alert Level 1 | . . . . 1 . . . . Low Security (%) 85 | 100 100 . . 58 . . . . Level 1 14 | . . . . 41 . . . . Level 2 . | . . . . . . . . . Level 3 . | . . . . . . . . . Level 4 . | . . . . . . . . . Level 5 . | . . . . . . . . . High Security . | . . . . . . . . . Max Security . | . . . . . . . . . Peak Influence 356 | 10 120 . . 356 . . . . Initial . | . . . . . . . . . Average 69 | 1 35 . . 139 . . . . Influence Increases 1665 | 35 375 . . 798 159 203 20 75 Destroy 0b10 Robot/C 1000 | . 280 . . 380 120 160 20 40 Destroy 0b10 Robot/NC 85 | 35 10 . . 25 10 . . 5 Destroy Leader 132 | . 64 . . 58 . 10 . . Allied During Kill 17 | . . . . . 14 3 . . Successful Hack 45 | . 4 . . 41 . . . . Disable Machine 15 | . . . . 15 . . . . Anti-Garrison Action 200 | . . . . 200 . . . . Destroy Structure 21 | . 2 . . 19 . . . . Lose Combat Pursuer 150 | . 15 . . 60 15 30 . 30 Influence Decreases 1660 | 35 375 . . 495 457 205 23 70 Entered New Map 118 | . . . . . 113 2 3 . Time Decay 1185 | 35 375 . . 268 304 133 20 50 Lost Part 220 | . . . . 130 . 70 . 20 Lost Ally 50 | . . . . 10 40 . . . Purge Threat 87 | . . . . 87 . . . . Squads Dispatched 7 | . 3 . . 4 . . . . Investigation 3 | . 2 . . 1 . . . . Extermination 1 | . . . . 1 . . . . Reinforcement 3 | . 1 . . 2 . . . . Assault . | . . . . . . . . . Garrison . | . . . . . . . . . Intercept . | . . . . . . . . . Searches Triggered . | . . . . . . . . . Construction Impeded . | . . . . . . . . . Haulers Reinforced 1 | . . . . 1 . . . . Active Scanning Responses . | . . . . . . . . . Cargo Convoy Interrupts . | . . . . . . . . . Stealth | -11 -10 -10 -9 -6 -6 -6 -6 -5 --------- Run | Yrd Mat Sub Scr Fac Low Low Dat Pro Distress Signals 2 | . 2 . . . . . . . Communications Jammed 9 | . . . . 9 . . . . Distress Signals . | . . . . . . . . . Times Spotted 94 | . 23 6 . 29 5 19 4 8 Peak Tracking Total 14 | . 4 2 . 7 4 14 1 5 Tactical Retreats 9 | . 1 . . 3 1 2 . 2 Traps | -11 -10 -10 -9 -6 -6 -6 -6 -5 ------- Run | Yrd Mat Sub Scr Fac Low Low Dat Pro Traps Triggered 2 | . 2 . . . . . . . Indirectly . | . . . . . . . . . Trap Hack Attempts . | . . . . . . . . . Triggered . | . . . . . . . . . Disarmed . | . . . . . . . . . Reprogrammed . | . . . . . . . . . Reused . | . . . . . . . . . Traps Extracted . | . . . . . . . . . Installed . | . . . . . . . . . Triggered . | . . . . . . . . . Machines | -11 -10 -10 -9 -6 -6 -6 -6 -5 ---------- Run | Yrd Mat Sub Scr Fac Low Low Dat Pro Machines Disabled 2 | . . . . 1 . . 1 . Max in Single Turn 1 | . . . . 1 . . 1 . Garrison Access 1 | . . . . 1 . . . . Machines Repaired . | . . . . . . . . . Machines Dismantled . | . . . . . . . . . Machines Sabotaged . | . . . . . . . . . Overloaded Fab Kills . | . . . . . . . . . Hacking | -11 -10 -10 -9 -6 -6 -6 -6 -5 --------- Run | Yrd Mat Sub Scr Fac Low Low Dat Pro Machines Accessed 16 | . 3 . 4 3 2 . 4 . Terminals 4 | . 2 . . 2 . . . . Fabricators . | . . . . . . . . . Repair Stations 1 | . 1 . . . . . . . Recycling Units . | . . . . . . . . . Scanalyzers . | . . . . . . . . . Garrison Access 1 | . . . . 1 . . . . Total Hacks 63 | . 7 . 11 9 4 . 32 . Successful 53 | . 2 . 11 4 4 . 32 . Failed 10 | . 5 . . 5 . . . . Catastrophic 2 | . 2 . . . . . . . Database Lockouts . | . . . . . . . . . Manual 12 | . 6 . . 6 . . . . Terminals 11 | . 5 . . 6 . . . . Fabricators . | . . . . . . . . . Repair Stations 2 | . 2 . . . . . . . Recycling Units . | . . . . . . . . . Scanalyzers . | . . . . . . . . . Garrison Access 3 | . . . . 3 . . . . Terminal Hacks 50 | . 1 . 11 2 4 . 32 . Record 15 | . . . 1 . 3 . 11 . Part Schematic 11 | . . . . . . . 11 . Robot Schematic 7 | . . . . . . . 7 . Robot Analysis 8 | . . . 8 . . . . . Prototype ID Bank 3 | . . . . . . . 3 . Open Door 2 | . . . 1 . 1 . . . Terminal Index 1 | . . . . 1 . . . . Unreport Threat 1 | . . . . 1 . . . . Locate Traps 1 | . 1 . . . . . . . Proto ID Catalog 1 | . . . 1 . . . . . Fabricator Hacks . | . . . . . . . . . Repair Station Hacks . | . . . . . . . . . Recycling Unit Hacks . | . . . . . . . . . Scanalyzer . | . . . . . . . . . Garrison Access Hacks . | . . . . . . . . . Unauthorized Hacks 3 | . 1 . . 2 . . . . Terminals 2 | . 1 . . 1 . . . . Assimilate 1 | . . . . 1 . . . . Skim 1 | . 1 . . . . . . . Fabricators . | . . . . . . . . . Repair Stations . | . . . . . . . . . Recycling Units . | . . . . . . . . . Scanalyzers . | . . . . . . . . . Garrison Access 1 | . . . . 1 . . . . Jam 1 | . . . . 1 . . . . Data Cores Recovered . | . . . . . . . . . Used . | . . . . . . . . . Hacking Detections 6 | . 3 . . 3 . . . . Full Trace Events . | . . . . . . . . . Feedback Events . | . . . . . . . . . Feedback Blocked . | . . . . . . . . . Robot Schematics Acquired 7 | . . . . . . . 7 . Robots Built . | . . . . . . . . . Authchips . | . . . . . . . . . Time . | . . . . . . . . . Total Robot Build Rating . | . . . . . . . . . Part Schematics Acquired 11 | . . . . . . . 11 . Parts Built . | . . . . . . . . . Authchips . | . . . . . . . . . Time . | . . . . . . . . . Total Part Build Rating . | . . . . . . . . . Part Studies Acquired . | . . . . . . . . . Parts Repaired . | . . . . . . . . . Time . | . . . . . . . . . Parts Recycled . | . . . . . . . . . Recycled Matter . | . . . . . . . . . Retrieved Matter . | . . . . . . . . . Retrieved Components . | . . . . . . . . . Parts Scanalyzed . | . . . . . . . . . Part Schematics Acquired . | . . . . . . . . . Parts Damaged . | . . . . . . . . . Bothacking | -11 -10 -10 -9 -6 -6 -6 -6 -5 ------------ Run | Yrd Mat Sub Scr Fac Low Low Dat Pro Used RIF Installer . | . . . . . . . . . Robots Hacked . | . . . . . . . . . Non-combat . | . . . . . . . . . Combat . | . . . . . . . . . Robot Hacks Applied . | . . . . . . . . . Relay Couplers Released . | . . . . . . . . . Fabnet Peak Effective % . | . . . . . . . . . Robots Rewired . | . . . . . . . . . Allies Hacked . | . . . . . . . . . Hacks Repelled . | . . . . . . . . . Allies | -11 -10 -10 -9 -6 -6 -6 -6 -5 -------- Run | Yrd Mat Sub Scr Fac Low Low Dat Pro Total Allies 4 | . . . . 1 3 . . . Largest Group 3 | . . . . 1 3 1 . . Highest-Rated Group 90 | . . . . 26 90 38 . . Highest-Rated Ally 38 | . . . . 26 30 38 . . Initial UFD Resources 25 | . . . . 22 22 22 22 25 Total Orders . | . . . . . . . . . Ally Attacks 12 | . . . . . 12 . . . Total Damage 321 | . . . . . 321 . . . Kills 3 | . . . . . 3 . . . Allies Corrupted . | . . . . . . . . . Allies Melted . | . . . . . . . . . X0-1V1 Amusement Gains 119 | . 18 . . . . 25 76 . Good Acts 29 | . . 2 . 5 10 11 . 1 Bad Acts 25 | . . 3 . 4 7 11 . . Intel | -11 -10 -10 -9 -6 -6 -6 -6 -5 ------- Run | Yrd Mat Sub Scr Fac Low Low Dat Pro Active Infowar (turns) 2390 | 31 181 . . 803 577 221 455 122 Sensors 1247 | . . . . 393 577 221 56 . IFF 57 | . . . . . 1 . . 56 Seismic 620 | 31 181 . . 408 . . . . Decoding 542 | . . . . . . 9 455 78 Jamming 463 | . . . . 463 . . . . Robot Analysis Total 8 | . . . 8 . . . . . Derelict Logs Recovered 11 | . . 2 5 . 3 1 . . Drone Launches . | . . . . . . . . . Drone Recoveries . | . . . . . . . . . Exploration | -11 -10 -10 -9 -6 -6 -6 -6 -5 ------------- Run | Yrd Mat Sub Scr Fac Low Low Dat Pro Turns Passed 8676 | 273 1589 1036 3131 1054 698 318 455 122 Spaces Moved 3609 | 110 505 290 1136 615 487 204 214 48 Core 1 | 1 . . . . . . . . Treads 2083 | 109 505 290 1136 43 . . . . Legs 28 | . . . . . . . 28 . Wheels 1497 | . . . . 572 487 204 186 48 Hover . | . . . . . . . . . Flight . | . . . . . . . . . Fastest Speed 50 | 50 160 320 160 115 115 115 100 115 Average Speed 204 | 159 256 320 271 118 122 119 123 115 Slowest Speed 320 | 160 320 320 320 160 130 130 190 115 Overloaded Moves . | . . . . . . . . . Propulsion Burnouts . | . . . . . . . . . Robots Hopped . | . . . . . . . . . Potential Cave-ins . | . . . . . . . . . Cave-ins Triggered . | . . . . . . . . . Exploration Rate (%) 44 | 6 65 29 86 14 62 48 81 8 Regions Visited 8 Branch Regions 6 Pre-discovered Areas 3 | . . 1 . . 1 . 1 . Known Exits Taken 4 | . . . . 1 1 1 1 . Unknown Exits Taken 4 | 1 1 1 1 . . . . . Scrap Searched 8 | . . . 6 . 1 1 . . Spaces Dug 6 | . 1 . . 3 . 2 . . Terrain Destroyed 96 | . 2 . . 16 . 78 . . Melee 5 | . . . . 3 . 2 . . Projectile 2 | . 2 . . . . . . . AOE 89 | . . . . 13 . 76 . . Terrain Rammed . | . . . . . . . . . Walls Destroyed . | . . . . . . . . . Machines Disabled . | . . . . . . . . . Actions | -11 -10 -10 -9 -6 -6 -6 -6 -5 --------- Run | Yrd Mat Sub Scr Fac Low Low Dat Pro Total 4460 | 152 719 345 1201 818 575 246 319 85 Wait 294 | . 121 8 7 60 66 3 21 8 Move 3601 | 109 504 289 1135 614 486 203 213 48 Hop . | . . . . . . . . . Pick Up 87 | 7 26 7 18 14 4 1 10 . Fast Attach 36 | 7 1 . 3 12 . 2 8 3 Attach 43 | . 3 6 3 17 2 4 3 5 Detach 11 | . 1 . 2 2 1 1 3 1 Swap 23 | . 7 4 4 1 2 5 . . Drop 63 | 1 12 4 29 9 3 2 2 1 Fire 109 | 26 39 27 . 5 . 12 . . Melee 184 | . . . . 84 10 12 59 19 Ram . | . . . . . . . . . Kick . | . . . . . . . . . Crush 7 | 2 5 . . . . . . . Escape Stasis . | . . . . . . . . . Rewire 1 | . . . . . 1 . . . Trap . | . . . . . . . . . Miscellaneous 1 | . . . . . . 1 . . Route ------- -11/Scrapyard -10/Materials (discovered 5 exits: [*Mat x2] / [*Min x2] / [*Sub]) -10/Subcaves -9/Scraptown (discovered 2 exits: *Fac x2) -6/Factory (discovered 3 exits: *Low / *Ext x2) -6/Lower Caves -6/Lower Caves (discovered 2 exits: Fac / *Dat) -6/Data Miner -5/Proximity Caves (discovered 1 exit: Fac) History --------- Turn | Location | Event 15 | -11/Scrapyard | Discovered new exit (range 15) 274 | -11/Scrapyard | Entered Materials 314 | -10/Materials | Build established: Mutant 446 | -10/Materials | Discovered new exit (range 15) 651 | -10/Materials | Discovered new exit (range 16) 1317 | -10/Materials | Discovered new exit (range 8) 1538 | -10/Materials | Discovered new exit (range 7) 1742 | -10/Materials | Discovered new exit (range 10) 1847 | -10/Materials | Prayed at D.C.S.S. Altar Unit 1863 | -10/Materials | Entered Subcaves 1864 | -10/Subcaves | Approached by a straggling Scientist 2019 | -10/Subcaves | Learned 2 Materials zone layouts 2058 | -10/Subcaves | Learned location of Zion (-7) 2139 | -10/Subcaves | Shifting Twisted Machinery released Sub. Beam Cannon 2177 | -10/Subcaves | Shifting Twisted Machinery released Sub. Machine Gun 2485 | -10/Subcaves | Ranged accuracy permanently improved by X0-1V1 (+5%; -50 max core) 2708 | -10/Subcaves | Lost 3 parts (2n1u) 2876 | -10/Subcaves | Scientist uncovered a shortcut to Scraptown 2899 | -10/Subcaves | Entered Scraptown 2899 | -9/Scraptown | System corruption cleaned by C-Scrubber 3058 | -9/Scraptown | Visited Symbiants 3135 | -9/Scraptown | Visited TADAMA 3212 | -9/Scraptown | Scanned Subdweller tech in exchange for log data 3225 | -9/Scraptown | Learned location of 1 exit from Upper Caves 3234 | -9/Scraptown | Learned Factory garrison access intel 3273 | -9/Scraptown | Discovered new exit (range 11) 4432 | -9/Scraptown | Visited CPS Storage 4458 | -9/Scraptown | Visited Spacefarers 4487 | -9/Scraptown | Visited Cyclists 4576 | -9/Scraptown | Visited The Evicted 4685 | -9/Scraptown | Visited UFD Registry 4685 | -9/Scraptown | Registered with UFD as "Shortparser" 4746 | -9/Scraptown | Visited Sword Containment 4778 | -9/Scraptown | Found Prototype Slashing Weapon 4778 | -9/Scraptown | Identified Companion Sword 4855 | -9/Scraptown | Visited Research Penetration Think Tank 4925 | -9/Scraptown | Visited Junk Cannon Lab 5163 | -9/Scraptown | Visited Science Guys 5262 | -9/Scraptown | Visited DA-N13 Charitable Foundation 5545 | -9/Scraptown | Found DCF Scrap (28 items) 5622 | -9/Scraptown | Visited Scrap Suit Storage 5643 | -9/Scraptown | Visited A0-MCA Data Center 5654 | -9/Scraptown | Given a B rating by A0-MCA 5657 | -9/Scraptown | Found A0-MCA's Component Scanner 5689 | -9/Scraptown | Visited Analyses Database 5742 | -9/Scraptown | Visited Derelict Rescue Squad 5759 | -9/Scraptown | Found DRS Beacon 5794 | -9/Scraptown | Visited Curators Association 5941 | -9/Scraptown | Met Optimus 5941 | -9/Scraptown | Accepted into 0bPrime 6027 | -9/Scraptown | Discovered new exit (range 3) 6030 | -9/Scraptown | Entered Factory 6030 | -6/Factory | Evolved 8 slots: Propulsion x2, Utility x6 6031 | -6/Factory | Identified exit to Lower Caves 6031 | -6/Factory | Identified exit to Extension 6032 | -6/Factory | Loaded intel: 4 garrison access locations 6164 | -6/Factory | X0-1V1 redirected Transport squads to designated parking area 6450 | -6/Factory | Sight range permanently improved by X0-1V1 (+1; -150 max core) 6465 | -6/Factory | X0-1V1 sent you into danger 6548 | -6/Factory | Lost 5 parts (1n3u1w) 6608 | -6/Factory | Lost 3 parts (1p2n) 6836 | -6/Factory | Lost 3 parts (2n1u) 6869 | -6/Factory | X0-1V1 foreshadows a heat wave 6986 | -6/Factory | Discovered exit to Extension (range 17) 7033 | -6/Factory | Ambient heat levels rising (+10) 7084 | -6/Factory | Entered Lower Caves 7094 | -6/Lower Caves | Encountered a Warlord checkpoint 7163 | -6/Lower Caves | X0-1V1 activates XOMVISION 7210 | -6/Lower Caves | Learned location of 1 exit from Proximity Caves 7280 | -6/Lower Caves | Utility slot count permanently improved by X0-1V1 (+1) 7328 | -6/Lower Caves | Build established: Gladiator 7344 | -6/Lower Caves | X0-1V1 sent hostile G-47 Trooper (x4) 7362 | -6/Lower Caves | X0-1V1 sent allied L-41 Fighter (x3) 7398 | -6/Lower Caves | Learned 8 Factory zone layouts 7403 | -6/Lower Caves | X0-1V1 rewrote L-41 Fighter IFF filter 7485 | -6/Lower Caves | Entered an active Warlord outpost 7512 | -6/Lower Caves | Learned location of Extension (-6) 7512 | -6/Lower Caves | Learned Extension emergency access door positions 7673 | -6/Lower Caves | Adv. Signal Interpreter reconfigured into Item Mimic 7695 | -6/Lower Caves | Discovered new exit (range 13) 7709 | -6/Lower Caves | Identified exit to Lower Caves 7737 | -6/Lower Caves | Adv. Signal Interpreter reconfigured into Item Mimic 7782 | -6/Lower Caves | Entered another Lower Caves area 7782 | -6/Lower Caves | Accompanied by 1 ally 7784 | -6/Lower Caves | Identified exit to Data Miner 7784 | -6/Lower Caves | X0-1V1 revealed exit location to -6/Data Miner 7830 | -6/Lower Caves | X0-1V1 vaporized surrounding terrain (radius 21) 7844 | -6/Lower Caves | Core integrity restored by X0-1V1 (+149) 7848 | -6/Lower Caves | Identified exit to Factory 7848 | -6/Lower Caves | X0-1V1 revealed exit location to -5/Factory 7853 | -6/Lower Caves | X0-1V1 activates XOMVISION 7876 | -6/Lower Caves | X0-1V1 rewrote L-41 Fighter IFF filter 7886 | -6/Lower Caves | X0-1V1 sent you into danger 7891 | -6/Lower Caves | Attracted the attention of an 0b10 base 7908 | -6/Lower Caves | Activated DRS Beacon 7979 | -6/Lower Caves | Lost 7 parts (1p3n3u) 8076 | -6/Lower Caves | Encountered a Warlord checkpoint 8076 | -6/Lower Caves | Learned Factory garrison access intel 8100 | -6/Lower Caves | Entered Data Miner 8100 | -6/Data Miner | Discovered new exit (range 6) 8121 | -6/Data Miner | Met Data Miner 8149 | -6/Data Miner | Learned location of Section 7 (-2) 8149 | -6/Data Miner | Acquired the access code to Warlord's prototype stash 8169 | -6/Data Miner | Received God Mode back door access code from Data Miner 8186 | -6/Data Miner | Destroyed Data Miner 8188 | -6/Data Miner | Found Prototype Hackware 8192 | -6/Data Miner | Data Conduit disabled 8196 | -6/Data Miner | Build established: Mutant 8267 | -6/Data Miner | Core integrity fell below 50% 8288 | -6/Data Miner | Found Prototype Device 8288 | -6/Data Miner | Identified Exp. Thermal Shield 8314 | -6/Data Miner | Lost 3 parts (1n2u) 8452 | -6/Data Miner | Lost 4 parts (1p2n1u) 8502 | -6/Data Miner | Found Exp. Thermal Shield 8553 | -6/Data Miner | Identified exit to Proximity Caves 8555 | -6/Data Miner | Entered Proximity Caves 8557 | -5/Proximity Caves | Attracted the attention of an 0b10 checkpoint 8565 | -5/Proximity Caves | Core integrity fell below 20% 8628 | -5/Proximity Caves | Lost 3 parts (1n2u) 8677 | -5/Proximity Caves | Destroyed by S-27 Virus with Autogun Last Messages --------------- 08640_ Sneak attack on L-41 Fighter. 08640_ Destroyed Carbon-fiber Leg. 08642_ Sneak attack on L-41 Fighter. 08642_ Destroyed Imp. Melee Analysis Suite. 08642_ L-41 Fighter destroyed. Companion Sword: "You sure know how to make a sword happy." 08645_ Acquired 40 matter. 08647_ Sneak attack on Z3-SNL(l). 08647_ Destroyed Imp. Deuterium Engine. 08647_ Destroyed Ripper. 08649_ Sneak attack on Z3-SNL(l). 08649_ Destroyed Carbon-fiber Leg. 08649_ Z3-SNL(l) destroyed. 08653_ Sneak attack on U0-7PK(s). 08653_ Destroyed Battle Rifle. 08653_ U0-7PK(s) destroyed. 08667_ Critical hit (Destroy). 08667_ Arm. Huge Wheel destroyed. 08674_ S-27 Virus Autogun severed. 08677_ X0-1V1 giggles madly! Map ----- +----------------------------------------------------+ | ??????????????? ??????????????????????? | | ??????????????## ???????????????????????? | | ??????????????# #???????????????????????? | | ??????????????# ###########?????????????? | | ??????????????# ## % #?????????????? | | ??????????????## % #[ #?????????????? | | ???????????????# ## #?????????????? | | ???????????????##### ### #?????????????? | | ???????????????????## #?# ##????????????? | | ????????????????????# ### ####?????????? | | ????????????????????# ##????????? | | ????????????????????# ## ?? | | ??????????????????### #?? | | ??????????????????# #?? | | ??????????????????# ## ## # | | ??????????????????# ### ##?? #? | | ??????????????????# ## #????? ##? | | ??????????????????## ##??????#?? | | ???????????????????## # ##?????????? | | ?????????????????##?# ## #??????????? | | ?????????????????# ## ## #??????????? | | ??????????????#### # ##??????????? | | ?????????????## ## ##### #???????????? | | ????????????## s #### #???????????? | | ????????????#% s ## #???????????? | | ????????????#* @[ ######???????????? | | ????????????##% % s #????????????????? | | ?????????????###### s #???????????????? | | ??????????????????### #???????????????? | | ????????????????????## ###???????????????? | | ?????????????????????####?????????????????? | | ??????????????????????????????????????????? | | ??????????????????????????????????????????? | | ??????????????????????????????????????????? | | ??????????????????????????????????????????? | | ??????????????????????????????????????????? | | ??????????????????????????????????????????? | | ??????????????????????????????????????????? | | ??????????????????????????????????????????? | | ??????????????????????????????????????????? | | ??????????????????????????????????????????? | | ??????????????????????????????????????????? | | ??????????????????????????????????????????? | | ??????????????????????????????????????????? | | ??????????????????????????????????????????? | | ??????????????????????????????????????????? | | ??????????????????????????????????????????? | | ??????????????????????????????????????????? | | ??????????????????????????????????????????? | | ??????????????????????????????????????????? | +----------------------------------------------------+ Best States ------------- Heat Dissipation 56 Energy Generation 21 Energy Capacity 1325 Matter Stores 1000 Matter Capacity 1000 Sight Range 23 Robot Scan Range 16 Terrain Scan Density 10 Jamming Range 12 Armor Coverage 450 Resistance: KI 20 Resistance: TH 30 Weapon Shielding 33 Evasion (%) 40 Melee Accuracy 12 Armor Integrity Analysis 30 Recoil Reduction 4 Item Schematics ----------------- Combat Drone Bay | -6/Data Miner | Free Lgt. Regenerative Plating | -6/Data Miner | Free Cld. Gravmag System | -6/Data Miner | Free Hvy. Gatling Laser | -6/Data Miner | Free Impulse Thruster | -6/Data Miner | Free Adv. Reaction Control System | -6/Data Miner | Free Imp. Matter Compressor | -6/Data Miner | Free Hyp. Mass Driver | -6/Data Miner | Free Adv. Power Amplifier | -6/Data Miner | Free Adv. Thermal Shield | -6/Data Miner | Free Imp. Thunder Leg | -6/Data Miner | Free Robot Schematics ------------------ S-27 Virus | -6/Data Miner | Free M-22 Extractor | -6/Data Miner | Free G-50 Soldier | -6/Data Miner | Free Y-54 Guardian | -6/Data Miner | Free L-61 Swordsman | -6/Data Miner | Free B-60 Warrior | -6/Data Miner | Free H-77 Assassin | -6/Data Miner | Free Fabricated ------------ Nothing Repaired ---------- Nothing Studied --------- None Alien Tech Used ----------------- None Achievements -------------- None Challenges ------------ None Game ------ Seed IntegratedZipJetlance Manual? 0 Play Time 00:40:10 Cumulative 984.2 hours Start 2026.07.17 @ 15:42:06 End 2026.07.17 @ 16:21:37 Sessions 1 Manual Loads 0 Difficulty Rogue Special Mode None Game No. 1674 Rogue 1674 Adventurer 0 Explorer 0 Win Type - Total 96 Types 57/1/16/16/4/0/0/1/0/1 Lore% 93 Gallery% 80 Achievement% 69 Wizard Run 0 Options --------- Layout 0 ASCII 1 Keyboard 0 Movement Numpad Keybinds 1 Fullscreen 2 Font 18/SmallcapsGlow Map View 76x50 Zoom Use 0% Tactical HUD 1 Map Filters NONE Filters NONE Steam 1 RUN: 2ade72b0-73c4-40b7-af27-44a9f4bfee12